{"text_format":"1","workbook":"xlsx","n_sheets":2,"sheets":["Vierge","Fériés"],"not_rendered":{"charts":0,"images":0,"macros":0,"external_links":0,"defined_names":6,"comments":0,"pivot_tables":0},"unopened":[],"bounds":{"document_bytes":16777216,"sheet_cells":100000,"rows_first":2000,"rows_last":500,"rows_between":2000,"halvings":0,"cell_chars":16384,"cell_head_chars":4096},"cells_cut":0,"cells_raw":0,"read":"whole","date_system":"1900"}

{"sheet":"Vierge","index":0,"n_rows":74,"n_cols":8,"rows_kept":74,"cut":false,"hidden":false,"merged":[[4,4,6,4],[4,6,6,6],[0,0,0,2],[5,7,6,7],[5,5,6,5]]}
["CALCUL DES DATES : JOURS DE CONGÉS 2018",null,null,"2018-05-01","TOTAL","RECUPERATION","JOURS DE "]
[" xx JOURS DE CONGE",null,"2018-01-01","2018-10-31","CONGE POSE EN ","HORAIRE","FRACTIONNEMENT","CET"]
["DATE EMBAUCHE",null,null,null,"JOURS"]
["MIFFRE PAUL",null,null,"FRACTIONNEMENT"]
[null,null,null,null,{"$f":"C7+C13+C19+C25+C31+C37+C44+C52+C59+C67","v":0},null,{"$f":"D7+D13+D19+D25+D31+D37+D44+D52+D59+D67","v":0}]
["Date début","Date de reprise","Jours de congés"]
[null,null,{"$f":"IFERROR(NETWORKDAYS(début,fin,fériés),0)","v":0},{"$f":"IF(A7=\"\",0,IF(OR(AND(début<débpér,fin<débpér,NETWORKDAYS(début,fin,fériés)>7),AND(début>=finpér,fin>finpér,NETWORKDAYS(début,fin,fériés)>7),AND(début<débpér,fin>=débpér,NETWORKDAYS(début,débpér,fériés)>7),AND(début<=finpér,fin>finpér,NETWORKDAYS(finpér,fin,fériés)>7)),2,IF(OR(AND(début<débpér,fin<débpér,NETWORKDAYS(début,fin,fériés)>4),AND(début>finpér,fin>finpér,NETWORKDAYS(début,fin,fériés)>4),AND(début<débpér,fin>=débpér,NETWORKDAYS(début,débpér,fériés)>4),AND(début<=finpér,fin>finpér,NETWORKDAYS(finpér,fin,fériés)>4)),1,IF(OR(AND(début<débpér,fin<débpér),AND(début>finpér,fin>finpér)),0,0))))","v":0}]
[]
[]
["MIFFRE PAUL",null,null,"FRACTIONNEMENT","SOLDE CONGE 2018 EN JOURS"]
[]
["Date début","Date de reprise","Jours de congés"]
[null,null,{"$f":"IFERROR(NETWORKDAYS(début,fin,fériés),0)","v":0},{"$f":"IF(A13=\"\",0,IF(OR(AND(début<débpér,fin<débpér,NETWORKDAYS(début,fin,fériés)>7),AND(début>=finpér,fin>finpér,NETWORKDAYS(début,fin,fériés)>7),AND(début<débpér,fin>=débpér,NETWORKDAYS(début,débpér,fériés)>7),AND(début<=finpér,fin>finpér,NETWORKDAYS(finpér,fin,fériés)>7)),2,IF(OR(AND(début<débpér,fin<débpér,NETWORKDAYS(début,fin,fériés)>4),AND(début>finpér,fin>finpér,NETWORKDAYS(début,fin,fériés)>4),AND(début<débpér,fin>=débpér,NETWORKDAYS(début,débpér,fériés)>4),AND(début<=finpér,fin>finpér,NETWORKDAYS(finpér,fin,fériés)>4)),1,IF(OR(AND(début<débpér,fin<débpér),AND(début>finpér,fin>finpér)),0,0))))","v":0}]
[]
[]
["MIFFRE PAUL",null,null,"FRACTIONNEMENT"]
[]
["Date début","Date de reprise","Jours de congés"]
[null,null,{"$f":"IFERROR(NETWORKDAYS(début,fin,fériés),0)","v":0},{"$f":"IF(A19=\"\",0,IF(OR(AND(début<débpér,fin<débpér,NETWORKDAYS(début,fin,fériés)>7),AND(début>=finpér,fin>finpér,NETWORKDAYS(début,fin,fériés)>7),AND(début<débpér,fin>=débpér,NETWORKDAYS(début,débpér,fériés)>7),AND(début<=finpér,fin>finpér,NETWORKDAYS(finpér,fin,fériés)>7)),2,IF(OR(AND(début<débpér,fin<débpér,NETWORKDAYS(début,fin,fériés)>4),AND(début>finpér,fin>finpér,NETWORKDAYS(début,fin,fériés)>4),AND(début<débpér,fin>=débpér,NETWORKDAYS(début,débpér,fériés)>4),AND(début<=finpér,fin>finpér,NETWORKDAYS(finpér,fin,fériés)>4)),1,IF(OR(AND(début<débpér,fin<débpér),AND(début>finpér,fin>finpér)),0,0))))","v":0}]
[]
[]
["MIFFRE PAUL",null,null,"FRACTIONNEMENT"]
[]
["Date début","Date de reprise","Jours de congés"]
[null,null,{"$f":"IFERROR(NETWORKDAYS(début,fin,fériés),0)","v":0},{"$f":"IF(A25=\"\",0,IF(OR(AND(début<débpér,fin<débpér,NETWORKDAYS(début,fin,fériés)>7),AND(début>=finpér,fin>finpér,NETWORKDAYS(début,fin,fériés)>7),AND(début<débpér,fin>=débpér,NETWORKDAYS(début,débpér,fériés)>7),AND(début<=finpér,fin>finpér,NETWORKDAYS(finpér,fin,fériés)>7)),2,IF(OR(AND(début<débpér,fin<débpér,NETWORKDAYS(début,fin,fériés)>4),AND(début>finpér,fin>finpér,NETWORKDAYS(début,fin,fériés)>4),AND(début<débpér,fin>=débpér,NETWORKDAYS(début,débpér,fériés)>4),AND(début<=finpér,fin>finpér,NETWORKDAYS(finpér,fin,fériés)>4)),1,IF(OR(AND(début<débpér,fin<débpér),AND(début>finpér,fin>finpér)),0,0))))","v":0}]
[]
[]
["MIFFRE PAUL",null,null,"FRACTIONNEMENT"]
[]
["Date début","Date de reprise","Jours de congés"]
[null,null,{"$f":"IFERROR(NETWORKDAYS(début,fin,fériés),0)","v":0},{"$f":"IF(A31=\"\",0,IF(OR(AND(début<débpér,fin<débpér,NETWORKDAYS(début,fin,fériés)>7),AND(début>=finpér,fin>finpér,NETWORKDAYS(début,fin,fériés)>7),AND(début<débpér,fin>=débpér,NETWORKDAYS(début,débpér,fériés)>7),AND(début<=finpér,fin>finpér,NETWORKDAYS(finpér,fin,fériés)>7)),2,IF(OR(AND(début<débpér,fin<débpér,NETWORKDAYS(début,fin,fériés)>4),AND(début>finpér,fin>finpér,NETWORKDAYS(début,fin,fériés)>4),AND(début<débpér,fin>=débpér,NETWORKDAYS(début,débpér,fériés)>4),AND(début<=finpér,fin>finpér,NETWORKDAYS(finpér,fin,fériés)>4)),1,IF(OR(AND(début<débpér,fin<débpér),AND(début>finpér,fin>finpér)),0,0))))","v":0}]
[]
[]
["MIFFRE PAUL",null,null,"FRACTIONNEMENT"]
[]
["Date début","Date de reprise","Jours de congés"]
[null,null,{"$f":"IFERROR(NETWORKDAYS(début,fin,fériés),0)","v":0},{"$f":"IF(A37=\"\",0,IF(OR(AND(début<débpér,fin<débpér,NETWORKDAYS(début,fin,fériés)>7),AND(début>=finpér,fin>finpér,NETWORKDAYS(début,fin,fériés)>7),AND(début<débpér,fin>=débpér,NETWORKDAYS(début,débpér,fériés)>7),AND(début<=finpér,fin>finpér,NETWORKDAYS(finpér,fin,fériés)>7)),2,IF(OR(AND(début<débpér,fin<débpér,NETWORKDAYS(début,fin,fériés)>4),AND(début>finpér,fin>finpér,NETWORKDAYS(début,fin,fériés)>4),AND(début<débpér,fin>=débpér,NETWORKDAYS(début,débpér,fériés)>4),AND(début<=finpér,fin>finpér,NETWORKDAYS(finpér,fin,fériés)>4)),1,IF(OR(AND(début<débpér,fin<débpér),AND(début>finpér,fin>finpér)),0,0))))","v":0}]
[]
[]
[]
["MIFFRE PAUL",null,null,"FRACTIONNEMENT"]
[]
["Date début","Date de reprise","Jours de congés"]
[null,null,{"$f":"IFERROR(NETWORKDAYS(début,fin,fériés),0)","v":0},{"$f":"IF(A44=\"\",0,IF(OR(AND(début<débpér,fin<débpér,NETWORKDAYS(début,fin,fériés)>7),AND(début>=finpér,fin>finpér,NETWORKDAYS(début,fin,fériés)>7),AND(début<débpér,fin>=débpér,NETWORKDAYS(début,débpér,fériés)>7),AND(début<=finpér,fin>finpér,NETWORKDAYS(finpér,fin,fériés)>7)),2,IF(OR(AND(début<débpér,fin<débpér,NETWORKDAYS(début,fin,fériés)>4),AND(début>finpér,fin>finpér,NETWORKDAYS(début,fin,fériés)>4),AND(début<débpér,fin>=débpér,NETWORKDAYS(début,débpér,fériés)>4),AND(début<=finpér,fin>finpér,NETWORKDAYS(finpér,fin,fériés)>4)),1,IF(OR(AND(début<débpér,fin<débpér),AND(début>finpér,fin>finpér)),0,0))))","v":0}]
[]
[]
[]
[]
["MIFFRE PAUL"]
[]
["Date débpér","Date Retour","Jours de congés"]
[null,null,{"$f":"IFERROR(NETWORKDAYS(début,fin,fériés),0)","v":0},{"$f":"IF(A52=\"\",0,IF(OR(AND(début<débpér,fin<débpér,NETWORKDAYS(début,fin,fériés)>7),AND(début>=finpér,fin>finpér,NETWORKDAYS(début,fin,fériés)>7),AND(début<débpér,fin>=débpér,NETWORKDAYS(début,débpér,fériés)>7),AND(début<=finpér,fin>finpér,NETWORKDAYS(finpér,fin,fériés)>7)),2,IF(OR(AND(début<débpér,fin<débpér,NETWORKDAYS(début,fin,fériés)>4),AND(début>finpér,fin>finpér,NETWORKDAYS(début,fin,fériés)>4),AND(début<débpér,fin>=débpér,NETWORKDAYS(début,débpér,fériés)>4),AND(début<=finpér,fin>finpér,NETWORKDAYS(finpér,fin,fériés)>4)),1,IF(OR(AND(début<débpér,fin<débpér),AND(début>finpér,fin>finpér)),0,0))))","v":0}]
[]
[]
[]
["MIFFRE PAUL"]
[]
["Date débpér","Date Retour","Jours de congés"]
[null,null,{"$f":"IFERROR(NETWORKDAYS(début,fin,fériés),0)","v":0},{"$f":"IF(A59=\"\",0,IF(OR(AND(début<débpér,fin<débpér,NETWORKDAYS(début,fin,fériés)>7),AND(début>=finpér,fin>finpér,NETWORKDAYS(début,fin,fériés)>7),AND(début<débpér,fin>=débpér,NETWORKDAYS(début,débpér,fériés)>7),AND(début<=finpér,fin>finpér,NETWORKDAYS(finpér,fin,fériés)>7)),2,IF(OR(AND(début<débpér,fin<débpér,NETWORKDAYS(début,fin,fériés)>4),AND(début>finpér,fin>finpér,NETWORKDAYS(début,fin,fériés)>4),AND(début<débpér,fin>=débpér,NETWORKDAYS(début,débpér,fériés)>4),AND(début<=finpér,fin>finpér,NETWORKDAYS(finpér,fin,fériés)>4)),1,IF(OR(AND(début<débpér,fin<débpér),AND(début>finpér,fin>finpér)),0,0))))","v":0}]
[]
[]
[]
[]
["MIFFRE PAUL"]
[]
["Date débpér","Date Retour","Jours de congés"]
[null,null,{"$f":"IFERROR(NETWORKDAYS(début,fin,fériés),0)","v":0},{"$f":"IF(A67=\"\",0,IF(OR(AND(début<débpér,fin<débpér,NETWORKDAYS(début,fin,fériés)>7),AND(début>=finpér,fin>finpér,NETWORKDAYS(début,fin,fériés)>7),AND(début<débpér,fin>=débpér,NETWORKDAYS(début,débpér,fériés)>7),AND(début<=finpér,fin>finpér,NETWORKDAYS(finpér,fin,fériés)>7)),2,IF(OR(AND(début<débpér,fin<débpér,NETWORKDAYS(début,fin,fériés)>4),AND(début>finpér,fin>finpér,NETWORKDAYS(début,fin,fériés)>4),AND(début<débpér,fin>=débpér,NETWORKDAYS(début,débpér,fériés)>4),AND(début<=finpér,fin>finpér,NETWORKDAYS(finpér,fin,fériés)>4)),1,IF(OR(AND(début<débpér,fin<débpér),AND(début>finpér,fin>finpér)),0,0))))","v":0}]
[]
[]
["CONTRAT ADULTE RELAIS"]
["CDI OU CDD DANS LA LIMITE D'UNE DUREE DE 3 ANS RENOUVELABLE 1 FOIS"]
["CONTRAT UNIQUE INSERTION CUI 1 AN"]
["CDD 6 mois / 1AN"]
["CONTRAT EMPLOI AVENIR  3ANS"]

{"sheet":"Fériés","index":1,"n_rows":15,"n_cols":4,"rows_kept":15,"cut":false,"hidden":false,"merged":[]}
[{"$f":"DATE(Encours,1,1)","v":"2018-01-01"},"Jour de l'an"]
[{"$f":"DATE(Encours,IF((25-MOD((11*MOD(Encours-1900,19)+4-INT((7*MOD(Encours-1900,19)+1)/19)),29)-MOD(Encours-1900+INT((Encours-1900)/4)+31-MOD((11*MOD(Encours-1900,19)+4-INT((7*MOD(Encours-1900,19)+1)/19)),29),7))>0,4,3),IF((25-MOD((11*MOD(Encours-1900,19)+4-INT((7*MOD(Encours-1900,19)+1)/19)),29)-MOD(Encours-1900+INT((Encours-1900)/4)+31-MOD((11*MOD(Encours-1900,19)+4-INT((7*MOD(Encours-1900,19)+1)/19)),29),7))>0,(25-MOD((11*MOD(Encours-1900,19)+4-INT((7*MOD(Encours-1900,19)+1)/19)),29)-MOD(Encours-1900+INT((Encours-1900)/4)+31-MOD((11*MOD(Encours-1900,19)+4-INT((7*MOD(Encours-1900,19)+1)/19)),29),7)),31+(25-MOD((11*MOD(Encours-1900,19)+4-INT((7*MOD(Encours-1900,19)+1)/19)),29)-MOD(Encours-1900+INT((Encours-1900)/4)+31-MOD((11*MOD(Encours-1900,19)+4-INT((7*MOD(Encours-1900,19)+1)/19)),29),7))))","v":"2018-04-01"},"Pâques"]
[{"$f":"A2+1","v":"2018-04-02"},"Lun de P",null,"Encours', c'est l'année. En 2019; JE changerais la valeur dans encours et mon tableau féries se mettra a jour automatiquement"]
[{"$f":"DATE(Encours,5,1)","v":"2018-05-01"},"Fête du travail"]
[{"$f":"DATE(Encours,5,8)","v":"2018-05-08"},"Victoire1945"]
[{"$f":"DATE(Encours,IF((25-MOD((11*MOD(Encours-1900,19)+4-INT((7*MOD(Encours-1900,19)+1)/19)),29)-MOD(Encours-1900+INT((Encours-1900)/4)+31-MOD((11*MOD(Encours-1900,19)+4-INT((7*MOD(Encours-1900,19)+1)/19)),29),7))>0,4,3),IF((25-MOD((11*MOD(Encours-1900,19)+4-INT((7*MOD(Encours-1900,19)+1)/19)),29)-MOD(Encours-1900+INT((Encours-1900)/4)+31-MOD((11*MOD(Encours-1900,19)+4-INT((7*MOD(Encours-1900,19)+1)/19)),29),7))>0,(25-MOD((11*MOD(Encours-1900,19)+4-INT((7*MOD(Encours-1900,19)+1)/19)),29)-MOD(Encours-1900+INT((Encours-1900)/4)+31-MOD((11*MOD(Encours-1900,19)+4-INT((7*MOD(Encours-1900,19)+1)/19)),29),7)),31+(25-MOD((11*MOD(Encours-1900,19)+4-INT((7*MOD(Encours-1900,19)+1)/19)),29)-MOD(Encours-1900+INT((Encours-1900)/4)+31-MOD((11*MOD(Encours-1900,19)+4-INT((7*MOD(Encours-1900,19)+1)/19)),29),7))))+39","v":"2018-05-10"},"Ascension"]
[{"$f":"DATE(Encours,IF((25-MOD((11*MOD(Encours-1900,19)+4-INT((7*MOD(Encours-1900,19)+1)/19)),29)-MOD(Encours-1900+INT((Encours-1900)/4)+31-MOD((11*MOD(Encours-1900,19)+4-INT((7*MOD(Encours-1900,19)+1)/19)),29),7))>0,4,3),IF((25-MOD((11*MOD(Encours-1900,19)+4-INT((7*MOD(Encours-1900,19)+1)/19)),29)-MOD(Encours-1900+INT((Encours-1900)/4)+31-MOD((11*MOD(Encours-1900,19)+4-INT((7*MOD(Encours-1900,19)+1)/19)),29),7))>0,(25-MOD((11*MOD(Encours-1900,19)+4-INT((7*MOD(Encours-1900,19)+1)/19)),29)-MOD(Encours-1900+INT((Encours-1900)/4)+31-MOD((11*MOD(Encours-1900,19)+4-INT((7*MOD(Encours-1900,19)+1)/19)),29),7)),31+(25-MOD((11*MOD(Encours-1900,19)+4-INT((7*MOD(Encours-1900,19)+1)/19)),29)-MOD(Encours-1900+INT((Encours-1900)/4)+31-MOD((11*MOD(Encours-1900,19)+4-INT((7*MOD(Encours-1900,19)+1)/19)),29),7))))+49","v":"2018-05-20"},"Pentecôte"]
[{"$f":"A7+1","v":"2018-05-21"},"Lun de P"]
[{"$f":"DATE(Encours,7,14)","v":"2018-07-14"},"Fêt. Nat."]
[{"$f":"DATE(Encours,8,15)","v":"2018-08-15"},"Assomption"]
[{"$f":"DATE(Encours,11,1)","v":"2018-11-01"},"Toussaint"]
[{"$f":"DATE(Encours,11,11)","v":"2018-11-11"},"Armistice"]
[{"$f":"DATE(Encours,12,25)","v":"2018-12-25"},"Noël"]
[{"$f":"A6+1","v":"2018-05-11"}]
[{"$f":"A11+1","v":"2018-11-02"}]